bitfinex-derivatives/quotes_ETHF0:USTF0_20210407
["timestamp","ask_amount","ask_price","bid_price","bid_amount"]
[1617824858282,13.2883,1975.3,1975.2,2.90695]
[1617824858479,13.2883,1975.3,1975.2,5.82105]
[1617824858682,13.2883,1975.3,1975.2,12.12105]
[1617824860284,16.19525,1975.3,1975.2,12.12105]
[1617824862788,13.2883,1975.3,1975.2,12.12105]
[1617824863388,63.3525,1976.6,1975.2,12.12105]
[1617824863689,13.7647,1976.5,1975.2,12.12105]
[1617824863892,13.7647,1976.5,1975.2,42.12105]
[1617824864189,13.7647,1976.5,1975.6,66.534]
[1617824864389,16.67165,1976.5,1976.4,2.90695]
[1617824864588,16.67165,1976.5,1976.4,4.84655]
[1617824864789,13.7647,1976.5,1976.4,11.07655]
[1617824865789,13.7591,1977.6,1976.4,11.07655]
[1617824866288,13.7591,1977.6,1976.6,2.90695]
[1617824866689,13.7591,1977.6,1976.7,6.22]
[1617824866889,43.7591,1977.6,1976.7,6.22]
[1617824867089,82.8548,1976.9,1976.7,6.22]
[1617824867489,82.8548,1976.9,1976.6,2.90695]
[1617824867993,82.8548,1976.9,1975.2,31.0123]
[1617824868192,82.8548,1976.9,1975.2,30.0]
[1617824868393,82.8548,1976.9,1976.2,2.90695]
[1617824868891,82.8548,1976.9,1976.3,6.09]
[1617824870195,2.3962,1977.1,1976.3,6.09]
[1617824870393,2.90695,1976.4,1976.3,6.09]
[1617824870594,2.90695,1976.4,1975.2,0.9991]
[1617824870595,58.1592,1976.3,1975.2,0.9991]
[1617824870900,88.1592,1976.3,1974.0,1.0046]
[1617824871394,88.1592,1976.3,1974.1,6.2]
[1617824871796,2.0,1976.2,1973.7,6.38]
[1617824871996,2.0,1976.0,1974.2,6.21]
[1617824872196,2.0,1975.8,1974.2,6.21]
[1617824872396,2.90695,1974.3,1973.7,6.26]
[1617824872595,5.13955,1974.3,1973.5,6.27]
[1617824872799,5.13955,1974.3,1971.9,32.0]
[1617824873098,81.6319,1973.3,1973.0,6.23]
[1617824873595,2.8389,1973.3,1973.0,6.23]
[1617824873898,1.8389,1973.3,1973.0,36.23]
[1617824874197,57.8032,1975.1,1973.0,36.23]
[1617824874396,57.8032,1975.1,1974.7,2.90695]
[1617824876497,2.90695,1974.8,1974.7,2.90695]
[1617824880003,2.90695,1974.8,1974.7,3.90825]
[1617824880203,2.90695,1974.8,1974.7,2.90695]
[1617824881206,57.8032,1975.1,1974.7,2.90695]
[1617824881905,57.8032,1975.1,1974.7,5.77175]
[1617824882105,57.8032,1975.1,1974.8,6.37]
[1617824882505,57.8032,1975.1,1975.0,2.90695]
[1617824882706,57.8032,1975.1,1974.8,6.37]
[1617824883607,57.8032,1975.1,1974.7,2.8648]
[1617824883806,57.8032,1975.1,1974.1,2.054]
[1617824884406,57.8032,1975.1,1974.8,2.90695]
[1617824884606,57.8032,1975.1,1974.2,6.15]
[1617824885107,77.9284,1974.2,1973.7,6.18]
[1617824885307,77.9284,1974.2,1972.8,2.0]
[1617824885308,80.8263,1974.2,1972.8,2.0]
[1617824885610,2.8979,1974.2,1973.8,6.17]
[1617824885809,2.8979,1974.2,1972.5,30.0]
[1617824886107,2.8979,1974.2,1972.3,2.0]
[1617824886108,80.0805,1973.0,1972.3,2.0]
[1617824886308,80.0805,1973.0,1972.9,0.9998]
[1617824886507,2.1047,1973.0,1972.9,9.22695]
[1617824887009,2.1047,1973.0,1972.9,9.01695]
[1617824887911,14.2031,1974.0,1972.9,10.02475]
[1617824888410,14.2031,1974.0,1972.9,40.02475]
[1617824888609,14.2031,1974.0,1973.9,2.90695]
[1617824889011,14.2031,1974.0,1973.9,9.21695]
[1617824889212,14.2031,1974.0,1973.9,2.90695]
[1617824889615,14.2031,1974.0,1973.9,8.98695]
[1617824890214,12.862,1974.1,1973.9,8.98695]
[1617824890819,2.90695,1974.5,1973.9,8.98695]
[1617824892522,2.90695,1974.7,1974.4,2.90695]
[1617824892721,75.8206,1975.5,1974.4,2.90695]
[1617824892920,75.8206,1975.5,1974.4,5.59695]
[1617824893124,75.8206,1975.5,1974.5,6.31]
[1617824894520,75.8206,1975.5,1974.9,2.90695]
[1617824894722,75.8206,1975.5,1974.9,5.38535]
[1617824895319,75.8206,1975.5,1975.0,6.19]
[1617824896722,2.90695,1975.1,1975.0,6.19]
[1617824897922,2.90695,1975.1,1974.9,2.90695]
[1617824899124,2.90695,1975.1,1975.0,6.25]
[1617824899324,2.90695,1975.1,1975.0,3.019]
[1617824901626,2.90695,1975.1,1975.0,9.119]
[1617824902731,2.90695,1975.3,1975.0,9.119]
[1617824903642,13.8246,1976.1,1975.0,9.119]
[1617824907032,13.8246,1976.1,1976.0,4.87425]
[1617824907331,13.8246,1976.1,1976.0,11.11425]
[1617824908936,16.73155,1976.1,1976.0,11.11425]
[1617824909835,16.73155,1976.1,1976.0,4.87425]
[1617824910035,16.73155,1976.1,1975.1,66.7708]
[1617824910335,76.4305,1975.6,1974.6,30.0]
[1617824910638,76.4305,1975.6,1974.7,6.26]
[1617824910935,76.4305,1975.6,1975.5,2.90695]
[1617824911137,76.4305,1975.6,1975.5,9.19695]
[1617824912740,76.4305,1975.6,1975.5,6.29]
[1617824912939,79.33745,1975.6,1975.5,9.19695]
[1617824913140,79.33745,1975.6,1975.5,6.29]
[1617824913640,81.94045,1975.6,1974.7,6.21]
[1617824913842,79.0335,1975.6,1975.5,6.36]
[1617824914243,79.0335,1975.6,1974.7,6.08]
[1617824914844,2.90695,1975.1,1975.0,2.90695]
[1617824915042,2.3141,1975.1,1975.0,2.90695]
[1617824915443,2.3141,1975.1,1975.0,9.14695]
[1617824916342,79.0335,1975.6,1975.0,9.14695]
[1617824916944,79.0335,1975.6,1975.5,2.90695]
[1617824917344,79.0335,1975.6,1975.5,9.25695]
[1617824917544,76.4305,1975.6,1975.5,9.25695]
[1617824918547,2.90695,1975.7,1975.5,9.25695]
[1617824918847,62.6013,1975.5,1975.2,2.90695]
[1617824919447,62.6013,1975.5,1975.3,6.07]
[1617824920351,62.6013,1975.5,1974.1,9.2309]
[1617824920551,62.6013,1975.5,1975.4,6.28]
[1617824920850,2.90695,1975.5,1975.4,2.90695]
[1617824921250,2.90695,1975.5,1975.4,9.05695]
[1617824922650,2.90695,1975.5,1975.4,11.80815]
[1617824922852,70.1528,1975.7,1975.4,11.80815]
[1617824925055,70.1528,1975.7,1975.6,2.90695]
[1617824926960,73.05975,1975.7,1975.6,2.90695]
[1617824928063,73.05975,1975.7,1974.3,106.7692]
[1617824928264,73.05975,1975.7,1974.6,2.3221]
[1617824928462,2.90695,1975.7,1974.6,2.3221]
[1617824928762,71.0838,1974.9,1974.7,6.17]
[1617824928962,71.0838,1974.9,1974.8,2.90695]
[1617824929361,71.0838,1974.9,1974.8,9.15695]
[1617824931064,73.99075,1974.9,1974.8,9.15695]
[1617824931264,71.0838,1974.9,1974.8,9.15695]
[1617824932965,73.99075,1974.9,1974.8,9.15695]
[1617824935868,71.0838,1974.9,1974.8,9.15695]
[1617824936168,71.0838,1974.9,1974.8,11.10625]
[1617824939776,71.0838,1974.9,1974.8,9.15695]
[1617824941778,60.9626,1976.0,1974.8,10.17735]
[1617824942079,60.9626,1976.0,1974.8,9.15695]
[1617824942278,60.9626,1976.0,1974.8,11.15695]
[1617824943179,63.86955,1976.0,1975.9,2.90695]
[1617824943480,63.86955,1976.0,1975.9,11.63015]
[1617824945181,63.86955,1976.0,1975.9,5.53015]
[1617824945381,63.86955,1976.0,1975.9,2.90695]
[1617824945881,63.86955,1976.0,1975.4,2.0481]
[1617824947085,63.86955,1976.0,1975.9,2.90695]
[1617824947287,63.86955,1976.0,1975.4,2.0481]
[1617824948988,2.90695,1976.0,1975.4,2.0481]
[1617824949192,14.1582,1976.2,1975.9,2.90695]
[1617824949390,14.1582,1976.2,1975.9,11.71615]
[1617824950294,13.0775,1976.6,1975.9,11.71615]
[1617824950694,0.95445429,1977.2,1975.9,11.71615]
[1617824950695,0.71579884,1977.1,1975.9,11.71615]
[1617824950994,13.5845,1977.2,1975.9,11.71615]
[1617824950995,13.5845,1977.2,1976.2,84.4998]
[1617824951192,13.5845,1977.2,1977.1,2.90695]
[1617824951397,13.5845,1977.2,1977.1,5.34905]
[1617824953296,16.49145,1977.2,1977.1,5.34905]
[1617824953897,0.71567526,1977.6,1977.1,5.34905]
[1617824954196,14.09360139,1977.8,1977.1,64.43365]
[1617824954197,13.85494042,1977.8,1977.1,64.43365]
[1617824954597,13.1394,1977.8,1977.1,64.43365]
[1617824955096,13.1394,1977.8,1977.1,5.34905]
[1617824955297,13.1394,1977.8,1977.7,2.90695]
[1617824955597,13.1394,1977.8,1977.7,5.95695]
[1617824957401,16.04635,1977.8,1977.7,5.95695]
[1617824958402,2.90695,1977.8,1977.7,5.95695]
[1617824959405,2.90695,1978.0,1977.7,5.95695]
[1617824961308,2.90695,1978.0,1977.9,2.90695]
[1617824962507,13.6924,1979.1,1977.9,32.90695]
[1617824962706,13.6924,1979.1,1978.0,73.3699]
[1617824962908,13.6924,1979.1,1978.0,75.3699]
[1617824963206,13.6924,1979.1,1978.0,73.3699]
[1617824963408,13.6924,1979.1,1978.5,2.90695]
[1617824963609,13.6924,1979.1,1978.5,5.28025]
[1617824965211,13.6924,1979.1,1978.5,2.90695]
[1617824965415,2.90695,1978.6,1978.5,2.90695]
[1617824966012,2.90695,1978.6,1977.4,113.3782]
[1617824967413,2.90695,1978.6,1978.5,2.90695]
[1617824967614,2.90695,1978.6,1978.5,5.95695]
[1617824971322,2.90695,1978.6,1978.1,2.90695]
[1617824971623,76.4158,1978.2,1978.1,2.90695]
[1617824972322,2.7075,1978.2,1978.1,2.90695]
[1617824972922,2.90695,1978.6,1978.1,2.90695]
[1617824973424,2.90695,1978.2,1978.1,2.90695]
[1617824975027,77.5876,1978.7,1978.1,5.37425]
[1617824975527,13.6924,1979.1,1978.6,4.88865]
[1617824977538,13.6924,1979.1,1979.0,5.42245]
[1617824977829,13.6924,1979.1,1979.0,2.5155]
[1617824979432,16.59935,1979.1,1979.0,2.5155]
[1617824979730,16.59935,1979.1,1978.6,2.90695]
[1617824980332,13.6924,1979.1,1978.6,2.90695]
[1617824980533,14.0086,1979.2,1978.6,2.90695]
[1617824980732,1.0,1979.4,1978.6,2.90695]
[1617824981532,3.90695,1979.4,1979.3,2.90695]
[1617824981836,3.90695,1979.4,1979.3,5.38045]
[1617824983942,3.90695,1979.4,1979.3,2.90695]
[1617824984239,64.5455,1978.6,1976.7,2.0282]
[1617824984439,64.5455,1978.6,1976.6,60.8094]
[1617824984741,66.7751,1978.6,1976.7,32.0]
[1617824985440,66.7751,1978.6,1978.5,2.90695]
[1617824986241,2.90695,1979.0,1978.5,2.90695]
[1617824987545,2.90695,1979.0,1978.9,2.90695]
[1617824987745,1.0,1979.4,1978.9,5.80675]
[1617824989647,1.0,1979.4,1979.3,5.15415]
[1617824991252,0.2789,1979.4,1979.3,5.15415]
[1617824991452,0.2789,1979.4,1979.3,35.15415]
[1617824991654,2.90695,1980.4,1979.5,60.624]
[1617824991852,2.90695,1980.4,1979.7,2.0]
[1617824992059,13.4105,1981.4,1979.7,33.92]
[1617824992655,91.3035,1981.7,1979.7,33.92]
[1617824992656,13.6567,1981.7,1979.7,33.92]
[1617824992855,13.6567,1981.7,1980.4,60.0809]
[1617824993055,13.6567,1981.7,1980.5,34.7249]
[1617824993755,16.56365,1981.7,1981.6,5.80205]
[1617824993957,16.56365,1981.7,1981.6,2.8951]
[1617824994255,2.90695,1981.7,1981.6,2.8951]
[1617824994454,13.9859,1982.2,1981.6,2.8951]
[1617824994755,13.9859,1982.2,1981.6,79.4255]
[1617824995556,13.9859,1982.2,1982.1,5.75965]
[1617824996658,72.3572,1983.3,1982.1,6.77795]
[1617824996859,13.6605,1983.3,1982.1,6.77795]
[1617824997265,63.7268,1982.8,1982.1,1.0183]
[1617824997562,2.90695,1982.2,1981.8,2.90695]
[1617824997972,2.90695,1982.2,1980.7,69.7009]
[1617824998266,32.90695,1982.2,1980.7,69.7009]
[1617824998661,2.3582,1981.7,1980.5,2.0267]
[1617824998863,78.4499,1981.4,1980.5,2.0267]
[1617824999064,78.4499,1981.4,1979.5,64.6778]
[1617824999270,78.4499,1981.4,1979.6,31.0193]
[1617824999565,78.4499,1981.4,1980.8,2.90695]
[1617825000371,78.4499,1981.4,1980.5,0.9967]
[1617825001565,79.4507,1981.4,1980.5,0.9967]
[1617825001967,30.0,1981.3,1980.5,0.9967]
[1617825002167,32.6581,1981.3,1980.5,0.9967]
[1617825002566,60.343,1980.7,1980.5,0.9967]
[1617825003667,2.90695,1980.6,1980.5,0.9967]
[1617825003868,32.90695,1980.6,1979.9,2.90695]
[1617825004475,2.0,1980.5,1978.8,1.0018]
[1617825004770,74.604,1979.9,1978.1,2.0]
[1617825004974,104.604,1979.9,1978.1,2.0]
[1617825005670,2.90695,1979.2,1979.0,2.90695]
[1617825005870,4.97115,1979.2,1979.0,2.90695]
[1617825007675,34.97115,1979.2,1977.3,2.0]
[1617825007873,84.5143,1978.5,1976.0,71.0202]
[1617825008078,87.2786,1978.5,1976.0,71.0202]
[1617825008474,87.2786,1978.5,1976.6,2.0]
[1617825008674,87.2786,1978.5,1976.7,30.0]
[1617825008974,87.2786,1978.5,1977.0,4.0362]
[1617825009574,87.2786,1978.5,1978.4,2.90695]
[1617825009974,2.7643,1978.5,1978.4,2.90695]
[1617825010273,102.1984,1979.1,1978.4,2.90695]
[1617825011875,102.1984,1979.1,1978.6,2.90695]
[1617825013875,2.90695,1978.7,1978.6,2.90695]
[1617825015778,28.1879,1979.1,1978.6,2.90695]
[1617825015980,28.1879,1979.1,1978.6,4.83045]
[1617825017379,2.0,1981.3,1978.6,4.83045]
[1617825017580,12.7861,1980.9,1978.7,30.0]
[1617825017781,25.9382,1980.9,1978.7,30.0]
[1617825017984,2.90695,1980.1,1979.9,2.90695]
[1617825018284,25.9382,1980.9,1979.9,5.18775]
[1617825019885,25.9382,1980.9,1980.7,2.90695]
[1617825020086,25.9382,1980.9,1980.7,4.78885]
[1617825021287,87.8857,1981.8,1980.7,4.78885]
[1617825021288,57.8857,1981.8,1980.7,4.78885]
[1617825021890,57.8857,1981.8,1981.6,2.90695]
[1617825022088,57.8857,1981.8,1980.7,1.8819]
[1617825023490,87.8857,1981.8,1980.7,1.8819]
[1617825024090,87.8857,1981.8,1980.8,2.90695]
[1617825026092,87.8857,1981.8,1980.1,64.6456]
[1617825026295,89.7671,1981.8,1980.1,64.6456]
[1617825026991,91.7671,1981.8,1980.1,64.6456]
[1617825027192,89.7671,1981.8,1980.1,64.6456]
[1617825027592,57.8857,1981.8,1980.1,64.6456]
[1617825027892,87.8857,1981.8,1980.1,65.6564]
[1617825028097,87.8857,1981.8,1981.1,2.90695]
[1617825028294,87.8857,1981.8,1980.1,65.6564]
[1617825028796,87.8857,1981.8,1980.1,64.6456]
[1617825029496,57.8857,1981.8,1980.1,64.6456]
[1617825029695,57.8857,1981.8,1980.1,65.6671]
[1617825029995,87.8857,1981.8,1980.8,2.90695]
[1617825030198,90.5769,1981.8,1980.1,64.6456]
[1617825030397,92.5769,1981.8,1980.1,64.6456]
[1617825031499,90.5769,1981.8,1980.1,64.6456]
[1617825032100,2.90695,1980.8,1980.5,2.90695]
[1617825032901,2.90695,1980.8,1980.1,64.6456]
[1617825034099,30.0,1981.6,1980.6,2.90695]
[1617825034803,2.0,1981.5,1980.6,2.90695]
[1617825035102,32.4962,1981.4,1980.6,2.90695]
[1617825035403,32.4962,1981.4,1980.0,1.0053]
[1617825035600,75.341,1981.2,1980.0,1.0053]
[1617825037604,75.341,1981.2,1979.6,1.0186]
[1617825038106,2.90695,1980.5,1980.1,2.90695]
[1617825038304,34.77945,1980.5,1979.2,1.0082]
[1617825038504,4.77945,1980.5,1979.2,1.0082]
[1617825038907,4.77945,1980.5,1978.9,58.8]
[1617825039105,34.77945,1980.5,1978.9,58.8]
[1617825040205,2.90695,1979.1,1979.0,2.90695]
[1617825040406,4.78685,1979.1,1979.0,2.90695]
[1617825040909,4.78685,1979.1,1978.3,2.0]
[1617825040910,4.78685,1979.1,1977.8,30.0]
[1617825041111,72.9336,1978.9,1977.8,30.0]
[1617825041312,72.9336,1978.9,1977.4,30.0]
[1617825041514,72.9336,1978.9,1976.7,2.0]
[1617825041812,72.9336,1978.9,1976.7,32.0]
[1617825042211,72.9336,1978.9,1978.8,2.90695]
[1617825042411,13.3246,1979.5,1978.8,2.90695]
[1617825043013,13.3246,1979.5,1978.8,4.87015]
[1617825043517,78.4003,1979.2,1978.8,1.9632]
[1617825044021,78.4003,1979.2,1977.4,30.0]
[1617825044215,78.4003,1979.2,1978.9,2.90695]
[1617825044616,78.4003,1979.2,1979.0,6.13]
[1617825044916,75.6485,1979.2,1979.0,6.13]
[1617825045925,13.3246,1979.5,1979.0,6.13]
[1617825046167,13.3246,1979.5,1979.4,2.90695]
[1617825046317,13.3246,1979.5,1979.4,5.61195]
[1617825046520,14.0303,1980.0,1979.4,11.89195]
[1617825047017,61.0027,1980.1,1979.4,11.89195]
[1617825047816,61.0027,1980.1,1979.4,13.89195]
[1617825048222,61.0027,1980.1,1980.0,2.90695]
[1617825048420,61.0027,1980.1,1980.0,4.78935]
[1617825048620,61.0027,1980.1,1980.0,10.94935]
[1617825049021,61.0027,1980.1,1980.0,8.0424]
[1617825050128,2.90695,1980.3,1980.0,10.94935]
[1617825050335,12.7814,1981.0,1980.0,10.94935]
[1617825050728,13.2536,1981.1,1980.0,10.94935]
[1617825051022,13.2536,1981.1,1980.0,40.94935]
[1617825051224,67.9524,1981.2,1980.1,2.0]
[1617825051729,67.9524,1981.2,1980.2,8.18]
[1617825052124,67.9524,1981.2,1980.2,2.0]
[1617825052326,27.6056,1982.0,1981.1,5.75815]
[1617825052723,27.6056,1982.0,1981.2,6.22]
[1617825053127,30.0,1981.9,1981.1,5.75815]
[1617825053324,27.6056,1982.0,1981.1,5.75815]
[1617825053824,27.6056,1982.0,1981.2,6.26]
[1617825054328,27.6056,1982.0,1981.4,2.90695]
[1617825055729,27.6056,1982.0,1981.5,6.26]
[1617825055928,27.6056,1982.0,1981.5,8.7304]
[1617825056229,27.6056,1982.0,1981.7,2.90695]
[1617825056931,27.6056,1982.0,1981.5,2.4704]
[1617825057629,27.6056,1982.0,1980.2,78.2409]
[1617825057830,30.0,1981.9,1980.2,78.2409]
[1617825058031,30.0,1981.9,1979.5,2.0]
[1617825058231,2.90695,1980.6,1980.2,2.90695]
[1617825058431,5.47195,1980.6,1980.3,6.28]
[1617825058634,5.47195,1980.6,1980.2,2.90695]
[1617825058930,5.47195,1980.6,1978.9,31.0029]
[1617825059634,5.47195,1980.6,1979.0,6.33]
[1617825059831,5.47195,1980.6,1979.2,2.0]
[1617825060030,5.47195,1980.6,1979.1,30.0]
[1617825060231,2.565,1980.6,1979.9,2.90695]
[1617825060631,2.565,1980.6,1980.0,6.15]
[1617825061132,2.565,1980.6,1978.9,1.0029]
[1617825061331,2.565,1980.6,1980.1,6.26]
[1617825061635,60.901,1980.2,1979.2,2.7581]
[1617825061837,60.901,1980.2,1979.2,32.7581]
[1617825062035,60.901,1980.2,1979.3,2.83]
[1617825062237,60.901,1980.2,1980.1,2.90695]
[1617825062635,27.9303,1981.1,1980.1,9.15695]
[1617825063035,98.1246,1981.1,1980.1,9.15695]
[1617825064237,2.90695,1980.2,1980.1,9.15695]
[1617825065139,98.1246,1981.1,1980.1,9.15695]
[1617825066039,128.1246,1981.1,1979.2,84.4374]
[1617825066340,128.1246,1981.1,1975.9,18.09602351]
[1617825066341,63.9813,1980.4,1978.1,60.0623]
[1617825066539,66.5621,1980.4,1978.1,60.0623]
[1617825066839,96.5621,1980.4,1978.5,6.2]
[1617825067040,2.0,1980.3,1978.2,6.29]
[1617825067241,30.0,1980.2,1978.1,90.0623]
[1617825067441,30.0,1980.2,1978.6,6.22]
[1617825067639,82.6507,1979.6,1978.2,6.21]
[1617825067841,82.6507,1979.6,1978.1,6.29]
[1617825068046,82.6507,1979.6,1978.7,6.21]
[1617825068341,2.90695,1979.5,1979.2,2.90695]
[1617825069841,2.90695,1979.5,1977.9,30.0]
[1617825070044,2.90695,1979.5,1977.4,2.0]
[1617825070243,82.6507,1979.6,1978.9,2.90695]
[1617825070643,82.6507,1979.6,1977.5,38.34]
[1617825071042,30.0,1979.5,1977.5,6.34]
[1617825071444,74.9158,1978.6,1977.4,6.07]
[1617825071847,74.9158,1978.6,1977.6,6.23]
[1617825072046,74.9158,1978.6,1977.5,6.24]
[1617825072347,74.9158,1978.6,1978.2,2.90695]
[1617825072546,2.4242,1978.6,1978.2,2.90695]
[1617825072747,2.4242,1978.6,1978.3,0.44]
[1617825073348,65.556,1979.2,1978.3,0.44]
[1617825073551,68.6309,1979.2,1978.2,2.90695]
[1617825074150,68.6309,1979.2,1978.3,6.15]
[1617825074349,68.6309,1979.2,1979.1,2.90695]
[1617825074551,68.6309,1979.2,1978.3,6.15]
[1617825074851,68.6309,1979.2,1977.6,82.175]
[1617825074852,98.6309,1979.2,1977.7,6.33]
[1617825075051,100.6309,1979.2,1977.7,6.33]
[1617825076352,100.6309,1979.2,1978.4,2.90695]
[1617825076753,68.6309,1979.2,1978.4,2.90695]
[1617825077960,98.6309,1979.2,1978.4,2.90695]
[1617825078158,98.6309,1979.2,1977.6,81.1752]
[1617825078356,98.6309,1979.2,1978.0,2.90695]
[1617825079161,100.6309,1979.2,1978.0,2.90695]
[1617825079761,35.0749,1979.2,1978.0,2.90695]
[1617825079958,79.1179,1978.5,1978.0,2.90695]
[1617825080360,2.90695,1978.1,1978.0,2.90695]
[1617825082970,79.1179,1978.5,1977.0,1.0]
[1617825083672,79.1179,1978.5,1977.1,6.29]
[1617825084274,79.1179,1978.5,1976.9,6.08]
[1617825084574,79.1179,1978.5,1978.0,2.90695]
[1617825085275,79.1179,1978.5,1978.0,5.92795]
[1617825085473,79.1179,1978.5,1978.1,6.27]
[1617825085773,79.1179,1978.5,1978.0,2.90695]
[1617825086574,2.90695,1978.1,1978.0,2.90695]
[1617825090680,2.90695,1978.1,1976.6,1.0002]
[1617825090982,32.0,1978.1,1977.5,2.90695]
[1617825091183,63.314,1977.5,1976.6,1.0002]
[1617825091383,65.941,1977.5,1976.7,6.25]
[1617825092885,5.56655,1976.8,1975.6,91.1515]
[1617825093083,5.56655,1976.8,1975.6,30.0]
[1617825093286,63.4333,1976.7,1975.6,30.0]
[1617825093486,63.4333,1976.7,1975.7,6.1]
[1617825094583,13.5293,1977.4,1975.8,30.0]
[1617825094793,13.5293,1977.4,1977.1,2.90695]
[1617825094986,13.5293,1977.4,1977.1,5.53985]
[1617825095186,13.5293,1977.4,1977.2,3.33]
[1617825095888,13.5293,1977.4,1977.1,5.53985]
[1617825096289,77.0807,1977.7,1977.1,5.53985]
[1617825096488,13.9546,1979.7,1977.2,6.29]
[1617825096690,13.6783,1978.5,1977.2,80.85]
[1617825096889,2.90695,1978.3,1977.2,80.85]
[1617825097389,2.90695,1978.3,1977.2,82.85]
[1617825097592,2.90695,1978.3,1977.2,80.85]
[1617825098792,13.6783,1978.5,1977.6,2.90695]
[1617825098993,43.6783,1978.5,1977.6,5.98275]
[1617825100094,61.4761,1978.2,1977.6,3.0758]
[1617825100294,30.0,1978.1,1977.6,3.0758]
[1617825100595,30.0,1978.1,1975.2,0.9973]
[1617825100596,30.0,1978.1,1976.6,61.3184]
[1617825100798,30.0,1978.1,1977.1,2.90695]
[1617825101496,32.0,1978.1,1977.1,2.90695]
[1617825102097,2.0,1978.1,1977.1,2.90695]
[1617825102797,2.90695,1977.2,1977.1,2.90695]
[1617825103303,35.21325,1977.2,1974.9,30.0]
[1617825103498,75.3879,1977.1,1975.3,77.0926]
[1617825104001,75.3879,1977.1,1975.4,6.32]
[1617825104901,75.3879,1977.1,1976.1,2.90695]
[1617825105301,75.3879,1977.1,1976.2,6.3]
[1617825105503,77.3879,1977.1,1976.2,6.3]
[1617825105701,75.3879,1977.1,1976.2,6.3]
[1617825107004,2.90695,1976.4,1976.3,2.90695]
[1617825107301,2.90695,1976.4,1976.3,3.01695]
[1617825107705,2.90695,1976.4,1976.3,2.90695]
[1617825110405,11.16215821,1982.2,1976.3,2.90695]
[1617825110406,90.7092,1977.8,1976.3,2.90695]
[1617825110607,30.0,1977.7,1976.3,12.02605]
[1617825110910,30.0,1977.7,1976.6,2.90695]
[1617825111107,30.0,1977.7,1976.3,6.17]
[1617825111307,33.0752,1977.7,1976.2,83.7522]
[1617825111707,35.0752,1977.7,1976.2,83.7522]
[1617825111905,35.0752,1977.7,1976.3,6.08]
[1617825112908,35.0752,1977.7,1976.4,2.90695]
[1617825113408,33.0752,1977.7,1976.4,2.90695]
[1617825113809,35.0752,1977.7,1976.4,2.90695]
[1617825114807,3.0752,1977.7,1976.4,2.90695]
[1617825115007,2.90695,1977.3,1976.9,5.04615]
[1617825115207,13.8668,1977.8,1977.1,72.9608]
[1617825115607,13.8668,1977.8,1977.2,6.35]
[1617825117008,13.8668,1977.8,1977.7,5.19155]
[1617825117307,13.8668,1977.8,1977.7,2.2846]
[1617825117608,73.1455,1978.9,1977.7,2.2846]
[1617825117808,12.9898,1978.8,1977.7,2.2846]
[1617825118008,12.9898,1978.8,1977.7,8.6146]
[1617825119009,2.90695,1977.9,1977.8,2.90695]
[1617825119512,2.90695,1977.9,1977.8,9.22695]
[1617825128326,2.90695,1977.9,1977.8,11.36515]
[1617825133036,2.90695,1977.9,1977.8,9.22695]
[1617825133237,2.90695,1977.9,1977.8,2.90695]
[1617825134739,2.90695,1977.9,1977.1,71.9382]
[1617825134939,2.90695,1977.9,1976.5,2.0]
[1617825135139,77.4853,1978.0,1977.5,2.90695]
[1617825135740,12.9898,1978.8,1977.5,2.90695]
[1617825135942,12.9898,1978.8,1977.5,80.82335]
[1617825136141,12.9898,1978.8,1977.6,6.09]
[1617825137245,12.9898,1978.8,1978.4,5.35175]
[1617825137843,12.9898,1978.8,1978.4,79.83665]
[1617825138045,12.9898,1978.8,1978.5,6.31]
[1617825139147,0.71037618,1980.7,1978.9,2.90695]
[1617825139347,0.94716824,1980.9,1978.9,2.90695]
[1617825139348,13.0706,1979.6,1978.9,5.45155]
[1617825139551,13.0706,1979.6,1979.1,59.619]
[1617825139949,13.0706,1979.6,1979.2,6.29]
[1617825140649,60.597,1980.6,1979.2,6.29]
[1617825140850,12.8134,1980.7,1979.8,72.9685]
[1617825141050,12.8134,1980.7,1979.8,74.945]
[1617825141250,12.8134,1980.7,1980.5,5.15035]
[1617825143355,12.8134,1980.7,1979.8,74.945]
[1617825143356,2.90695,1980.6,1979.8,1.9765]
[1617825143553,70.9912,1980.5,1979.4,1.0226]
[1617825144157,70.9912,1980.5,1979.5,6.2]
[1617825144856,5.81175,1980.6,1979.5,6.2]
[1617825145056,5.81175,1980.6,1979.7,74.5419]
[1617825145354,2.9048,1980.6,1979.7,74.5419]
[1617825145554,12.8134,1980.7,1979.7,74.5419]
[1617825145758,12.8134,1980.7,1979.8,6.12]
[1617825146454,12.8134,1980.7,1979.7,74.5419]
[1617825146654,42.8134,1980.7,1979.7,74.5419]
[1617825146855,2.0,1980.6,1979.7,74.5419]
[1617825147154,2.0,1980.6,1979.8,2.90695]
[1617825147356,12.8134,1980.7,1979.8,2.90695]
[1617825148158,12.8134,1980.7,1979.9,6.21]
[1617825149056,45.8016,1980.7,1979.8,2.90695]
[1617825149256,2.90695,1979.9,1979.8,2.90695]